fUSD/lending_fUSD_20240528
["ID","MTS","AMOUNT","RATE_DAILY","PERIOD"]
[328148741,1716937834392,-153.56431096,0.00027976,2]
[328148742,1716937834401,-1321.31,0.00027976,2]
[328148743,1716937834410,-156.26787985,0.00027994,2]
[328148744,1716937834420,-500.0,0.00028102,2]
[328148745,1716937834429,-500.0,0.00028102,2]
[328148746,1716937834439,-500.0,0.00028102,2]
[328148747,1716937834452,-500.0,0.00028102,2]
[328148748,1716937834463,-154.93677966,0.00028107,2]
[328148749,1716937834472,-165.96497899,0.00028149,2]
[328148750,1716937834483,-4417.99,0.00028203,2]
[328148751,1716937834492,-165.96497899,0.00028224,2]
[328148752,1716937834501,-154.0460557,0.00028229,2]
[328148753,1716937834511,-153.56431096,0.00028282,2]
[328148754,1716937834521,-285.61,0.00028306,2]
[328148755,1716937834531,-300.876,0.00028317,2]
[328148756,1716937834541,-2100.0,0.00028317,2]
[328148757,1716937834550,-157.36422571,0.00028319,2]
[328148758,1716937834559,-153.56431096,0.00028364,2]
[328148759,1716937834569,-5325.34447575,0.00028396,2]
[328148760,1716937834578,-1700.27630279,0.00028396,2]
[328148761,1716937834588,-165.96497899,0.00028416,2]
[328148762,1716937834597,-151.0,0.00028616,2]
[328148763,1716937834607,-165.96497899,0.00028698,2]
[328148764,1716937834616,-155.47649457,0.00028771,2]
[328148765,1716937834626,-165.96497899,0.00028878,2]
[328148766,1716937834635,-265.41628419,0.000289,2]
[328148767,1716937834645,-822.63,0.00028942,2]
[328148768,1716937834655,-165.96497899,0.0002899,2]
[328148769,1716937834665,-500.0,0.00029198,2]
[328148770,1716937834674,-500.0,0.00029198,2]
[328148771,1716937834684,-500.0,0.00029198,2]
[328148772,1716937834693,-500.0,0.00029198,2]
[328148773,1716937834703,-165.94574548,0.00029224,2]
[328148774,1716937834715,-163.03369703,0.00029282,2]
[328148775,1716937834725,-155.03078472,0.00029326,2]
[328148776,1716937834735,-640.23,0.00029328,2]
[328148777,1716937834744,-154.26,0.00029349,2]
[328148778,1716937834754,-171.67,0.00029389,2]
[328148779,1716937834764,-166.66666666,0.00029458,2]
[328148780,1716937834774,-165.96497899,0.00029518,2]
[328148781,1716937834783,-155.03078472,0.00029526,2]
[328148782,1716937834793,-165.96497899,0.00029543,2]
[328148783,1716937834804,-5325.34447575,0.00029563,2]
[328148784,1716937834813,-1700.27630279,0.00029563,2]
[328148785,1716937834822,-165.96497899,0.0002961,2]
[328148786,1716937834831,-165.96497899,0.00029636,2]
[328148787,1716937834841,-181.7495362,0.00029653,10]
[328148788,1716937834850,-157.51349002,0.00029655,2]
[328148789,1716937834859,-154.46581357,0.0002972,2]
[328148790,1716937834869,-165.96497899,0.00029772,2]
[328148791,1716937834878,-155.47649457,0.00029816,2]
[328148792,1716937834888,-164.61062386,0.0003,2]
[328148793,1716937834897,-5695.44208129,0.0003,2]
[328148794,1716937834906,-694.98447914,0.0003,2]
[328148795,1716937834916,-154.43062866,0.00030058,7]
[328148796,1716937834925,-658.49,0.00030066,2]
[328148797,1716937834935,-154.43062866,0.00030074,7]
[328148798,1716937834944,-7390.05500731,0.00030076,2]
[328148799,1716937834954,-5000.0,0.00030076,2]
[328148800,1716937834966,-5000.0,0.00030076,2]
[328148801,1716937834975,-751.0,0.000301,2]
[328148802,1716937834984,-154.43062866,0.00030164,7]
[328148803,1716937834994,-500.0,0.00030294,10]
[328148804,1716937835003,-500.0,0.00030294,10]
[328148805,1716937835013,-500.0,0.00030294,10]
[328148806,1716937835022,-153.42,0.00030374,2]
[328148807,1716937835032,-165.96497899,0.0003039,7]
[328148808,1716937835042,-153.56431096,0.00030432,7]
[328148809,1716937835051,-160.0772059,0.00030477,7]
[328148810,1716937835061,-285.61,0.0003057,2]
[328148811,1716937835070,-165.96497899,0.00030588,7]
[328148812,1716937835080,-155.03078472,0.00030611,7]
[328148813,1716937835089,-5325.34447575,0.00030731,10]
[328148814,1716937835098,-1700.27630279,0.00030731,10]
[328148815,1716937835108,-694.98447913,0.00030771,2]
[328148816,1716937835117,-171.67,0.00030846,2]
[328148817,1716937835126,-1265.0,0.00030851,2]
[328148818,1716937835135,-614.0,0.00030851,2]
[328148819,1716937835145,-1645.0,0.00030851,2]
[328148820,1716937835154,-168.0,0.00030851,2]
[328148821,1716937835164,-155.03078472,0.00030863,7]
[328148822,1716937835174,-1461.774,0.00030948,2]
[328148823,1716937835184,-1915.0,0.00031133,2]
[328148824,1716937835193,-156.26787985,0.00031139,7]
[328148825,1716937835202,-156.26787985,0.00031229,7]
[328148826,1716937835215,-500.0,0.0003139,10]
[328148827,1716937835224,-500.0,0.0003139,10]
[328148828,1716937835233,-165.96497899,0.00031399,7]
[328148829,1716937835242,-155.03078472,0.0003151,7]
[328148830,1716937835254,-694.98447913,0.00031543,2]
[328148831,1716937835265,-150.0,0.00031583,2]
[328148832,1716937835276,-150.0,0.00031602,2]
[328148833,1716937835286,-150.0,0.00031681,2]
[328148834,1716937835297,-154.43062866,0.00031697,7]
[328148835,1716937835308,-566.0,0.000317,4]
[328148836,1716937835320,-1568.0,0.000318,4]
[328148837,1716937835331,-155.03078472,0.00031818,7]
[328148838,1716937835342,-155.47649457,0.00031836,7]
[328148839,1716937835353,-822.63,0.00031836,2]
[328148840,1716937835363,-156.26787985,0.0003184,7]
[328148841,1716937835373,-5325.34447575,0.00031898,10]
[328148842,1716937835382,-1700.27630279,0.00031898,10]
[328148843,1716937835392,-165.96497899,0.00031944,7]
[328148844,1716937835401,-403.23,0.00031945,2]
[328148845,1716937835411,-5374.45253184,0.00031986,5]
[328148846,1716937838171,-411.70999974,0.00023491,2]
[328148847,1716937838334,-739.9595465,0.00023491,2]
[328148849,1716937838494,-330.23958489,0.00023491,2]
[328148879,1716937841620,-8518.09086887,0.00023491,2]
[328148880,1716937841632,-1062.0,0.00030948,2]
[328148881,1716937841642,-2012.88746816,0.00031986,5]
[328148882,1716937841654,-155.03078472,0.00032006,7]
[328148883,1716937841664,-4130.49,0.00032009,2]
[328148884,1716937841674,-1303.98587825,0.00032017,2]
[328148885,1716937841687,-580.75500001,0.00032017,2]
[328148886,1716937842839,-3115.25912174,0.00032017,2]
[328148889,1716937842849,-10000.0,0.00032053,2]
[328148890,1716937842858,-2500.0,0.00032055,2]
[328148893,1716937842868,-1510.63,0.00032102,2]
[328148895,1716937842878,-4609.03,0.00032148,2]
[328148897,1716937842888,-4662.04,0.00032162,2]
[328148899,1716937842899,-155.02839787,0.00032191,7]
[328148901,1716937842908,-2500.0,0.00032196,2]
[328148902,1716937842918,-5000.0,0.00032217,2]
[328148903,1716937842928,-165.94574548,0.00032249,7]
[328148904,1716937842939,-155.03078472,0.00032284,7]
[328148905,1716937842948,-2500.64,0.00032298,2]
[328148906,1716937842959,-694.98447913,0.00032314,2]
[328148907,1716937842970,-2505.56,0.00032344,2]
[328148908,1716937842980,-2500.0,0.00032372,2]
[328148909,1716937842990,-2500.0,0.00032421,2]
[328148910,1716937843001,-10000.0,0.00032452,2]
[328148911,1716937843012,-322.12600017,0.00032454,2]
[328148912,1716937843022,-150.0,0.00032459,2]
[328148913,1716937843032,-5000.0,0.00032482,2]
[328148914,1716937843041,-500.0,0.00032486,10]
[328148915,1716937843051,-2500.64,0.00032504,2]
[328148916,1716937843062,-150.0,0.00032512,2]
[328148917,1716937843072,-2500.0,0.00032518,2]
[328148918,1716937843083,-154.43062866,0.0003252,7]
[328148919,1716937843093,-2500.0,0.0003252,2]
[328148920,1716937843104,-5000.0,0.00032554,2]
[328148921,1716937843114,-3357.38,0.00032596,2]
[328148922,1716937843125,-5000.0,0.00032617,2]
[328148923,1716937843135,-5000.0,0.00032725,2]
[328148924,1716937843146,-5000.0,0.0003274,2]
[328148925,1716937843156,-2505.56,0.00032744,2]
[328148926,1716937843166,-865.35,0.00032789,2]
[328148927,1716937843175,-285.61,0.00032834,2]
[328148928,1716937843185,-5000.0,0.00032834,2]
[328148929,1716937843195,-163.03369704,0.00032854,7]
[328148930,1716937843204,-156.49288304,0.00032862,2]
[328148932,1716937843214,-168.5,0.00032877,2]
[328148933,1716937843225,-9754.32,0.00032877,2]
[328148934,1716937843234,-13762.21,0.00032877,2]
[328148935,1716937843244,-1008.58,0.000329,2]
[328148936,1716937843253,-751.0,0.000329,2]
[328148937,1716937843263,-5000.0,0.00032914,2]
[328148938,1716937843274,-5000.0,0.0003292,2]
[328148939,1716937843284,-2501.59,0.00032949,2]
[328148940,1716937843294,-640.23,0.00032994,2]
[328148941,1716937843305,-725.219366,0.00033,2]
[328148942,1716937843314,-658.49,0.00033055,2]
[328148943,1716937843325,-5325.34447575,0.00033065,10]
[328148944,1716937843335,-1700.27630279,0.00033065,10]
[328148945,1716937843345,-694.98447913,0.00033086,2]
[328148946,1716937843356,-155.03078472,0.00033106,7]
[328148947,1716937843367,-154.43062866,0.00033225,7]
[328148948,1716937843377,-155.02839787,0.00033246,7]
[328148949,1716937843387,-158.52692095,0.00033301,7]
[328148950,1716937843396,-5535.50070121,0.00033342,2]
[328148951,1716937843407,-165.96497899,0.00033358,7]
[328148952,1716937843416,-150.0,0.00033373,2]
[328148953,1716937843426,-150.0,0.00033411,2]
[328148954,1716937843436,-154.43062866,0.00033542,7]
[328148955,1716937843448,-1000.0,0.00033565,2]
[328148956,1716937843460,-1000.0,0.00033565,2]
[328148957,1716937843471,-1000.0,0.00033565,2]
[328148958,1716937843480,-1000.0,0.00033565,2]
[328148959,1716937843491,-1000.0,0.00033565,2]
[328148960,1716937843502,-1000.0,0.00033565,2]
[328148961,1716937843512,-1000.0,0.00033565,2]
[328148962,1716937843524,-1000.0,0.00033565,2]
[328148963,1716937843534,-1000.0,0.00033565,2]
[328148964,1716937843544,-1000.0,0.00033565,2]
[328148965,1716937843554,-1000.0,0.00033565,2]
[328148966,1716937843563,-1000.0,0.00033565,60]
[328148967,1716937843573,-500.0,0.00033582,10]
[328148968,1716937843582,-155.03078472,0.00033616,7]
[328148969,1716937843592,-2006.19259401,0.00033723,2]
[328148970,1716937843602,-500.0,0.00033752,2]
[328148971,1716937843612,-500.0,0.00033752,2]
[328148972,1716937843621,-450.0,0.0003377,2]
[328148973,1716937843631,-736.424,0.00033851,2]
[328148974,1716937843641,-1436.62,0.00033851,2]
[328148975,1716937843651,-153.56431096,0.00033853,7]
[328148976,1716937843661,-694.98447913,0.00033857,2]
[328148977,1716937843671,-531.996,0.00033948,2]
[328148978,1716937843681,-165.96497899,0.00033968,7]
[328148979,1716937843691,-1000.0,0.00034,120]
[328148980,1716937843701,-760.0,0.00034,2]
[328148981,1716937843712,-156.19758059,0.00034,2]
[328148982,1716937843725,-500.0,0.00034,2]
[328148983,1716937843735,-165.96497899,0.00034028,7]
[328148984,1716937843745,-165.96497899,0.00034112,7]
[328148985,1716937843755,-157.36422571,0.00034129,7]
[328148986,1716937843765,-1002.0,0.000342,2]
[328148987,1716937843776,-1008.58,0.00034215,2]
[328148988,1716937843785,-5325.34447575,0.00034233,10]
[328148989,1716937843795,-1700.27630279,0.00034233,10]
[328148990,1716937843806,-155.03078472,0.00034284,7]
[328148991,1716937843816,-150.0,0.0003433,2]
[328148992,1716937843826,-157.36422578,0.00034367,7]
[328148993,1716937843837,-871.06,0.00034422,2]
[328148994,1716937843847,-871.06,0.00034422,2]
[328148995,1716937843856,-288.36,0.00034422,2]
[328148996,1716937843866,-717.0,0.00034435,2]
[328148997,1716937843876,-572.0,0.00034435,2]
[328148998,1716937843886,-155.03078486,0.00034448,7]
[328148999,1716937843896,-300.0,0.00034559,120]
[328149000,1716937843906,-154.43062866,0.00034574,7]
[328149001,1716937843916,-168.02233262,0.0003459,7]
[328149002,1716937843926,-153.56431096,0.00034616,7]
[328149003,1716937843936,-165.96497905,0.00034617,7]
[328149004,1716937843946,-207.0,0.0003462,2]
[328149005,1716937843955,-207.0,0.0003462,2]
[328149006,1716937843965,-694.98447913,0.00034629,2]
[328149007,1716937843975,-150.0,0.00034646,2]
[328149008,1716937843985,-400.0,0.0003467,2]
[328149009,1716937843994,-500.0,0.00034678,10]
[328149010,1716937844004,-822.63,0.0003473,2]
[328149011,1716937844014,-927.45531659,0.00034788,2]
[328149012,1716937844024,-155.0,0.00034788,4]
[328149013,1716937844035,-717.0,0.0003479,2]
[328149014,1716937844045,-572.0,0.0003479,2]
[328149016,1716937844054,-151.0,0.00034946,2]
[328149017,1716937844064,-1185.28256148,0.00034991,2]
[328149018,1716937844074,-2000.0,0.00035,2]
[328149019,1716937844083,-2000.0,0.00035,2]
[328149020,1716937844093,-2000.0,0.00035,2]
[328149021,1716937844104,-2000.0,0.00035,2]
[328149022,1716937844114,-2000.0,0.00035,2]
[328149023,1716937844124,-2000.0,0.00035,2]
[328149024,1716937844134,-2000.0,0.00035,2]
[328149025,1716937844144,-2000.0,0.00035,2]
[328149026,1716937844155,-2000.0,0.00035,2]
[328149027,1716937844164,-2178.64820667,0.00035,10]
[328149028,1716937844175,-3269.15925034,0.00035,2]
[328149029,1716937844184,-300.0,0.00035014,120]
[328149030,1716937844194,-285.61,0.00035097,2]
[328149031,1716937844385,-233.0,0.00035119,5]
[328149032,1716937844399,-3000.0,0.0003514,2]
[328149033,1716937844408,-156.03580885,0.00035144,3]
[328149034,1716937844418,-717.0,0.00035145,2]
[328149035,1716937844427,-572.0,0.00035145,2]
[328149036,1716937844437,-380.70037141,0.00035149,2]
[328149037,1716937844449,-1500.0,0.00035155,2]
[328149038,1716937844459,-500.0,0.00035215,10]
[328149039,1716937844470,-200.0,0.00035215,10]
[328149040,1716937844479,-166.86055701,0.000353,2]
[328149041,1716937844490,-224.0,0.000353,2]
[328149042,1716937844499,-354.0,0.000353,2]
[328149043,1716937844509,-226.02454329,0.00035323,2]
[328149044,1716937844519,-1500.0,0.00035333,2]
[328149045,1716937844529,-199.00059321,0.00035342,2]
[328149046,1716937844539,-500.0,0.00035342,8]
[328149047,1716937844548,-166.86055701,0.0003535,2]
[328149048,1716937844558,-165.4497,0.00035376,2]
[328149049,1716937844567,-3119.05929185,0.00035376,2]
[328149050,1716937844577,-255.14873995,0.00035376,9]
[328149051,1716937844587,-3119.05929185,0.00035388,2]
[328149052,1716937844596,-2103.02,0.00035397,3]
[328149053,1716937844605,-150.0,0.000354,9]
[328149054,1716937844615,-164.56423458,0.000354,2]
[328149055,1716937844624,-65302.03106988,0.000354,8]
[328149056,1716937844633,-150.0,0.000354,9]
[328149057,1716937844643,-166.86055701,0.000354,2]
[328149058,1716937844652,-5325.34447575,0.000354,10]
[328149059,1716937844662,-694.98447913,0.000354,2]
[328149060,1716937844671,-3119.05929185,0.000354,2]
[328149061,1716937844680,-150.0,0.000354,8]
[328149062,1716937844690,-195.53717201,0.000354,2]
[328149063,1716937844700,-1700.27630279,0.000354,10]
[328149064,1716937844709,-2372.77021579,0.000354,2]
[328149065,1716937844719,-157.052908,0.00035418,46]
[328149066,1716937844730,-157.052908,0.00035428,46]
[328149067,1716937844746,-1500.0,0.0003543,2]
[328149068,1716937844757,-500.0,0.00035436,8]
[328149069,1716937844767,-157.052908,0.00035438,46]
[328149070,1716937844777,-157.052908,0.00035448,46]
[328149071,1716937844786,-800.0,0.00035452,2]
[328149072,1716937844795,-658.49,0.00035466,2]
[328149073,1716937844805,-300.0,0.00035468,120]
[328149074,1716937844815,-300.0,0.0003547,2]
[328149075,1716937844824,-400.0,0.0003547,2]
[328149076,1716937844833,-570.7815492,0.00035476,2]
[328149077,1716937844842,-570.7815492,0.00035476,2]
[328149078,1716937844851,-570.7815492,0.00035476,2]
[328149079,1716937844861,-570.7815492,0.00035476,2]
[328149080,1716937844870,-570.7815492,0.00035476,2]
[328149081,1716937844879,-620.684143,0.00035476,2]
[328149082,1716937844888,-620.684143,0.00035476,2]
[328149083,1716937844897,-620.684143,0.00035476,2]
[328149084,1716937844906,-620.684143,0.00035476,2]
[328149085,1716937844916,-620.684143,0.00035476,2]
[328149086,1716937844924,-35931.4748173,0.00035476,2]
[328149087,1716937844933,-28433.3675995,0.00035476,2]
[328149088,1716937844942,-20935.2603817,0.00035476,2]
[328149089,1716937844951,-13437.1531639,0.00035476,2]
[328149090,1716937844960,-5939.0459461,0.00035476,2]
[328149091,1716937844969,-1022.6800209,0.00035476,2]
[328149092,1716937844979,-809.2692303,0.00035476,2]
[328149093,1716937844987,-595.8584398,0.00035476,2]
[328149094,1716937844996,-382.4476492,0.00035476,2]
[328149095,1716937845005,-169.0368587,0.00035476,2]
[328149096,1716937845014,-390.6942299,0.00035476,2]
[328149097,1716937845023,-390.6942299,0.00035476,2]
[328149098,1716937845032,-390.6942299,0.00035476,2]
[328149099,1716937845041,-390.6942299,0.00035476,2]
[328149100,1716937845051,-390.6942299,0.00035476,2]
[328149101,1716937845060,-658.49,0.00035485,2]
[328149102,1716937845069,-570.7815492,0.00035486,2]
[328149103,1716937845078,-620.684143,0.00035486,2]
[328149104,1716937845088,-43429.5820351,0.00035486,2]
[328149105,1716937845097,-3500.24909719,0.0003549,3]
[328149106,1716937845106,-7276.20991696,0.0003549,120]
[328149107,1716937845115,-38768.4408272,0.00035494,2]
[328149108,1716937845124,-291.3057086,0.00035495,2]
[328149109,1716937845132,-500.0,0.00035497,8]
[328149110,1716937845141,-2330.4456688,0.00035497,2]
[328149111,1716937845150,-582.72759516,0.00035498,4]
[328149112,1716937845159,-1603.10006197,0.00035498,2]
[328149113,1716937845168,-1630.02488131,0.00035498,4]
[328149114,1716937845178,-306.53561288,0.00035498,4]
[328149115,1716937845187,-234.40611588,0.00035498,4]
[328149116,1716937845196,-207.58824107,0.00035498,4]
[328149117,1716937845205,-784.30875841,0.00035498,2]
[328149118,1716937845214,-2188.02281065,0.00035498,4]
[328149119,1716937845223,-189.60975483,0.00035498,4]
[328149120,1716937845232,-636.88647009,0.00035498,2]
[328149121,1716937845241,-155.0,0.00035498,4]
[328149122,1716937845250,-5510.81382945,0.00035498,4]
[328149123,1716937845259,-155.0,0.00035498,4]
[328149124,1716937845268,-155.0,0.00035498,4]
[328149125,1716937845277,-619.40919627,0.00035498,4]
[328149126,1716937845286,-155.0,0.00035498,4]
[328149127,1716937845294,-204.9501833,0.00035498,4]
[328149128,1716937845303,-325.18870715,0.00035498,4]
[328149129,1716937845312,-155.0,0.00035498,4]
[328149130,1716937845321,-155.0,0.00035498,4]
[328149131,1716937845330,-158.60373146,0.00035498,4]
[328149132,1716937845339,-410.67512791,0.00035498,2]
[328149133,1716937845348,-1264.4259542,0.00035498,120]
[328149134,1716937845357,-804.42407721,0.00035498,4]
[328149135,1716937845366,-6244.01880649,0.00035498,4]
[328149136,1716937845375,-1272.21947396,0.00035498,4]
[328149137,1716937845384,-5190.00947145,0.00035498,4]
[328149138,1716937845393,-9161.51745053,0.00035498,4]
[328149139,1716937845402,-6776.29426629,0.00035498,4]
[328149140,1716937845411,-5515.18694721,0.00035498,2]
[328149141,1716937845419,-634.05792568,0.00035498,4]
[328149142,1716937845428,-283.005,0.00035498,4]
[328149143,1716937845437,-248.97029145,0.00035498,4]
[328149144,1716937845450,-224.47596139,0.00035498,4]
[328149145,1716937845460,-472.70724684,0.00035498,4]
[328149146,1716937845469,-433.36217777,0.00035498,4]
[328149147,1716937845479,-1226.83205404,0.00035498,4]
[328149148,1716937845488,-213.48183145,0.00035498,4]
[328149149,1716937845498,-155.0,0.00035498,8]
[328149150,1716937845506,-1483.6790455,0.00035498,4]
[328149151,1716937845515,-7874.06300079,0.00035498,4]
[328149152,1716937845524,-189630.5490779,0.00035498,4]
[328149153,1716937845535,-1169.75510399,0.00035498,4]
[328149154,1716937845545,-1348.64433981,0.00035498,4]
[328149155,1716937845553,-500.0,0.00035498,8]
[328149156,1716937845562,-3163.73433673,0.00035499,4]
[328149157,1716937845571,-529.79565751,0.00035499,4]
[328149158,1716937845579,-2000.0,0.00035499,2]
[328149159,1716937845588,-500.0,0.00035499,8]
[328149160,1716937845597,-500.0,0.00035499,8]
[328149161,1716937845605,-500.0,0.00035499,8]
[328149162,1716937845614,-500.0,0.00035499,8]
[328149163,1716937845622,-500.0,0.00035499,8]
[328149164,1716937845631,-500.0,0.00035499,8]
[328149165,1716937845640,-500.0,0.00035499,8]
[328149166,1716937845649,-500.0,0.00035499,8]
[328149167,1716937845658,-500.0,0.00035499,8]
[328149168,1716937845666,-500.0,0.00035499,8]
[328149169,1716937845675,-500.0,0.00035499,8]
[328149170,1716937845684,-369.11889163,0.00035499,8]
[328149171,1716937845693,-41678.6210182,0.000355,11]
[328149172,1716937845702,-1133.64022228,0.000355,5]
[328149173,1716937845711,-1682446.71330927,0.000355,5]
[328149174,1716937845720,-563148.43896444,0.000355,5]
[328149175,1716937845730,-722321.49917706,0.000355,5]
[328149176,1716937845739,-7052408.8847312,0.000355,5]
[328149182,1716937846461,-360.44824083,0.000353,2]
[328149183,1716937846473,-502.13752266,0.000353,2]
[328149184,1716937846485,-137.41423651,0.000353,2]
[328149185,1716937846496,-1799.33957793,0.000355,5]
[328149216,1716938303879,191.91,0.00013973,2]
[328149217,1716938328970,-198.8,0.00016695,2]
[328149262,1716939032508,-155.0,0.00016701,2]
[328149263,1716939032518,-182.3,0.00016702,2]
[328149264,1716939032528,-182.3,0.00018411,2]
[328149265,1716939032538,-182.3,0.0002012,2]
[328149266,1716939032547,-150.99,0.00021828,2]
[328149267,1716939032557,-182.3,0.00021828,3]
[328149268,1716939032567,-843.21,0.00023491,2]
[328149269,1716939032579,-9156.79,0.00023491,2]
[328149270,1716939032589,-182.3,0.00023537,5]
[328149271,1716939032598,-182.3,0.00025246,5]
[328149272,1716939032608,-182.3,0.00026955,7]
[328149273,1716939032617,-750.0,0.00027,2]
[328149274,1716939032626,-805.2552867,0.0002739,2]
[328149275,1716939032635,-182.3,0.00028664,7]
[328149276,1716939032645,-265.41628419,0.00028999,2]
[328149277,1716939032654,-800.0,0.00029,2]
[328149278,1716939032663,-222.97,0.00030183,2]
[328149279,1716939032672,-2100.0,0.00030274,2]
[328149280,1716939032682,-182.3,0.00030373,7]
[328149281,1716939032691,-155.04118763,0.0003079,7]
[328149282,1716939032700,-850.0,0.00031,2]
[328149283,1716939032710,-30000.0,0.00031,4]
[328149284,1716939032719,-2751.0,0.00031993,2]
[328149285,1716939032731,-663.1,0.00032035,2]
[328149286,1716939032741,-182.3,0.00032081,7]
[328149287,1716939032750,-250.0,0.00032082,2]
[328149288,1716939032759,-2000.0,0.00032192,2]
[328149289,1716939032768,-200.0,0.00032215,2]
[328149290,1716939032777,-322.23,0.00032263,120]
[328149291,1716939032787,-250.0,0.00032282,2]
[328149292,1716939032796,-222.97,0.00032447,2]
[328149293,1716939032806,-166.45,0.00032515,2]
[328149294,1716939032819,-900.0,0.00033,2]
[328149295,1716939032828,-1008.3,0.000334,2]
[328149296,1716939032838,-2006.19259401,0.00033723,2]
[328149297,1716939032847,-163.36,0.00033739,2]
[328149298,1716939032858,-182.3,0.0003379,15]
[328149299,1716939032867,-747.0,0.0003414,5]
[328149300,1716939032876,-1008.3,0.0003464,2]
[328149301,1716939032885,-222.97,0.00034711,2]
[328149302,1716939032897,-927.45531659,0.00034788,2]
[328149303,1716939032907,-1140.26247644,0.0003479,5]
[328149304,1716939032916,-3000.0,0.000348,2]
[328149305,1716939032925,-500.9690138,0.000348,2]
[328149306,1716939032935,-2000.0,0.000348,2]
[328149307,1716939032944,-760.22888192,0.000348,2]
[328149308,1716939032953,-950.0,0.00035,2]
[328149309,1716939032962,-2500.0,0.00035,5]
[328149310,1716939032972,-2508.68,0.000351,2]
[328149312,1716939032984,-180.0,0.00035216,2]
[328149314,1716939032994,-244.95638803,0.00035321,4]
[328149315,1716939033003,-441.4070949,0.00035342,4]
[328149316,1716939033013,-529.43,0.00035397,2]
[328149317,1716939033023,-10762.2741,0.00035398,7]
[328149318,1716939033032,-2500.0,0.00035398,2]
[328149319,1716939033041,-1409.3567,0.000354,2]
[328149320,1716939033051,-3000.0,0.000354,30]
[328149321,1716939033060,-3000.0,0.000354,32]
[328149322,1716939033069,-3000.0,0.000354,36]
[328149323,1716939033079,-3000.0,0.000354,38]
[328149324,1716939033088,-2269.19,0.000354,40]
[328149325,1716939033098,-166.860557,0.000354,2]
[328149326,1716939033107,-1000.0,0.000354,2]
[328149327,1716939033116,-168.53006914,0.000354,2]
[328149328,1716939033126,-224.0,0.000354,2]
[328149329,1716939033136,-11308.7396164,0.000354,2]
[328149330,1716939033146,-422.72089191,0.000354,2]
[328149331,1716939033155,-150.0,0.000354,8]
[328149332,1716939033165,-354.0,0.000354,2]
[328149333,1716939033175,-151.0,0.00035424,2]
[328149334,1716939033184,-1650.75137005,0.00035441,5]
[328149335,1716939033198,-5822.18862995,0.00035441,5]
[328149336,1716939033208,-206.0151352,0.00035476,2]
[328149337,1716939033217,-206.0151352,0.00035476,2]
[328149338,1716939033230,-206.0151352,0.00035476,2]
[328149339,1716939033239,-206.0151352,0.00035476,2]
[328149340,1716939033248,-206.0151352,0.00035476,2]
[328149341,1716939033256,-836.01534718,0.00035488,10]
[328149342,1716939033267,-688.1,0.00035488,10]
[328149343,1716939033278,-386.386,0.00035488,10]
[328149347,1716939038331,-567.6803,0.00023491,2]
[328149350,1716939038343,-1492.0,0.00023491,2]
[328149354,1716939038509,-250.0,0.00023491,2]
[328149368,1716939042713,-226.30445507,0.000201,2]
[328149369,1716939042722,-1950.71375493,0.00023491,2]
[328149409,1716939046529,-2307.87070252,0.00023491,2]
[328149410,1716939046541,-3431.73524255,0.00023491,2]
[328149411,1716939046551,-3062.07017648,0.00023491,2]
[328149412,1716939046713,-1370.06,0.00023491,2]
[328149471,1716939223499,2372176.71201452,0.00013,2]
[328149472,1716939398000,2193014.90237886,0.00013,2]
[328149473,1716939429479,897.69009609,0.00015,2]
[328149474,1716939445893,155.33,0.00013973,2]
[328149477,1716939928133,153.42,0.00013973,2]
[328149511,1716940231425,-155.0,0.00015897,2]
[328149513,1716940231435,-155.0,0.00015916,2]
[328149514,1716940231444,-155.0,0.00015917,2]
[328149515,1716940231452,-150.0,0.00015919,2]